bitfinex/quotes_ETHUSD_20251010
["timestamp","ask_amount","ask_price","bid_price","bid_amount"]
[1760125102149,0.001,4001.8,4001.7,49.42384041]
[1760125102741,0.001,4001.8,4001.7,52.06884041]
[1760125102917,0.001,4002.3,4002.2,3.13222575]
[1760125103116,0.001,4002.3,4002.2,8.27494832]
[1760125103321,0.001,4002.7,4002.2,8.27494832]
[1760125103322,0.001,4002.7,4002.6,4.41837605]
[1760125103531,0.001,4002.7,4002.6,13.79895981]
[1760125103732,0.6916,4007.2,4005.3,2.49663107]
[1760125103961,0.39170903,4007.3,4005.7,0.6336]
[1760125104144,0.39170903,4007.3,4005.8,0.0249638]
[1760125104324,0.4612,4008.9,4005.5,1.92]
[1760125104520,0.4612,4008.9,4005.7,1.92]
[1760125104719,0.4612,4008.9,4006.2,14.5]
[1760125104925,0.4612,4008.9,4006.4,0.6336]
[1760125105251,0.4612,4009.7,4006.7,0.6336]
[1760125105550,0.4612,4009.7,4006.7,20.7896]
[1760125105852,0.01395,4009.8,4006.7,23.2854195]
[1760125106056,0.01395,4009.8,4006.7,23.5404195]
[1760125106220,0.01395,4009.8,4006.7,34.62852286]
[1760125106421,0.01395,4009.8,4006.7,26.03552286]
[1760125106634,0.01395,4009.8,4006.7,19.54870336]
[1760125106834,0.4612,4009.7,4006.7,22.04452286]
[1760125107030,0.4612,4009.1,4006.7,17.62870336]
[1760125107359,0.39133932,4009.3,4006.7,26.19752286]
[1760125107559,0.39133932,4009.3,4006.7,28.11752286]
[1760125107760,0.01395,4009.8,4006.7,23.27452286]
[1760125107937,0.39135168,4009.3,4006.7,20.77870336]
[1760125108141,0.39135168,4009.3,4006.7,29.35570336]
[1760125108331,0.39135168,4009.3,4006.7,21.35452286]
[1760125108526,0.39135168,4009.3,4006.7,33.93352286]
[1760125109265,0.39135168,4009.3,4006.7,33.93252286]
[1760125109465,0.01395,4009.8,4007.5,2.49529714]
[1760125109761,0.01395,4009.8,4007.7,0.6336]
[1760125109965,0.01395,4009.8,4007.8,12.576]
[1760125110164,2.5536,4009.6,4007.9,6.069]
[1760125110370,0.01395,4009.8,4008.0,6.069]
[1760125110371,0.6336,4009.2,4008.0,6.069]
[1760125110567,0.6336,4009.2,4008.1,2.082]
[1760125110780,0.6336,4009.3,4008.1,2.082]
[1760125110988,0.6336,4009.0,4006.7,4.95510336]
[1760125111282,2.49469876,4008.5,4007.6,1.23]
[1760125111434,2.49469876,4008.5,4006.7,2.46]
[1760125111435,0.2304,4007.7,4006.7,2.46]
[1760125111638,0.6336,4008.3,4006.7,2.46]
[1760125111838,1.92,4008.0,4006.8,4.701]
[1760125112060,0.4612,4007.9,4006.7,2.46]
[1760125112261,1.92,4008.9,4006.9,3.986]
[1760125112468,0.39150253,4008.9,4006.9,3.986]
[1760125112667,0.39150253,4008.9,4006.7,3.69]
[1760125112869,0.6336,4008.8,4006.7,3.69]
[1760125113167,0.6336,4008.6,4006.7,3.69]
[1760125113370,1.92,4009.7,4006.7,3.69]
[1760125113371,2.5536,4008.2,4006.8,5.14]
[1760125113569,0.6336,4008.0,4006.8,5.14]
[1760125113865,0.4612,4008.1,4006.8,5.14]
[1760125114092,0.3914932,4008.2,4006.9,0.02495694]
[1760125114242,0.4612,4008.2,4006.7,4.92]
[1760125114445,0.4612,4008.2,4007.0,3.985]
[1760125114745,0.4612,4008.2,4006.7,4.92]
[1760125114945,0.6336,4007.8,4006.8,2.081]
[1760125115142,0.6336,4007.3,4006.7,4.92]
[1760125115375,0.6336,4007.1,4006.7,4.92]
[1760125115576,0.6336,4006.9,4006.8,1.23]
[1760125115984,1.0948,4006.9,4006.8,1.23]
[1760125116277,0.6916,4007.7,4006.8,1.23]
[1760125116484,0.6336,4007.6,4006.9,3.984]
[1760125116653,0.6916,4007.7,4006.8,1.23]
[1760125116654,1.92,4007.3,4006.8,1.23]
[1760125116854,0.6336,4007.1,4007.0,0.755]
[1760125117168,35.04917036,4007.1,4007.0,0.6134]
[1760125117361,35.04917036,4007.1,4007.0,0.1522]
[1760125117557,35.04917036,4007.1,4006.8,0.7303125]
[1760125117558,2.49569492,4006.9,4006.8,0.7303125]
[1760125117758,2.49569492,4006.9,4006.2,1.23]
[1760125117759,0.6336,4006.6,4006.2,1.23]
[1760125117959,35.04966869,4006.3,4006.2,1.23]
[1760125118256,2.5536,4006.3,4006.2,1.23]
[1760125118457,32.5536,4006.3,4006.2,1.23]
[1760125118657,15.4556,4006.3,4006.2,1.23]
[1760125118863,17.95166869,4006.3,4006.2,1.23]
[1760125119071,32.5536,4006.3,4006.2,1.23]
[1760125119263,19.2976,4006.3,4006.2,1.23]
[1760125119681,21.79366869,4006.3,4006.2,1.23]
[1760125119869,14.8556,4006.3,4006.2,1.23]
[1760125120068,0.6336,4006.3,4006.2,1.23]
[1760125120290,0.3915628,4006.8,4006.2,1.23]
[1760125121080,0.6336,4006.6,4006.2,1.23]
[1760125121501,0.3915628,4006.8,4006.2,1.23]
[1760125121719,0.001,4009.9,4006.7,0.2172]
[1760125122046,0.001,4009.9,4009.1,0.6336]
[1760125122321,0.001,4009.9,4009.2,4.198]
[1760125123035,0.001,4009.9,4007.9,3.0]
[1760125123036,0.282,4009.9,4007.9,3.0]
[1760125123184,2.49426319,4009.2,4007.9,3.0]
[1760125123390,0.6336,4008.9,4007.9,3.0]
[1760125123586,0.8761172,4008.8,4007.9,3.0]
[1760125123840,0.6336,4008.7,4007.9,3.0]
[1760125124325,0.6336,4009.2,4007.9,3.0]
[1760125124627,0.6336,4008.5,4007.9,3.0]
[1760125124839,3.12822348,4008.7,4007.9,3.0]
[1760125125019,0.6336,4008.4,4007.9,3.0]
[1760125125188,0.6336,4008.2,4007.9,3.0]
[1760125125406,0.6336,4008.0,4007.9,3.0]
[1760125125813,2.5536,4008.7,4007.9,3.0]
[1760125126044,2.5536,4008.4,4007.9,3.0]
[1760125126347,0.1029,4008.3,4007.9,3.0]
[1760125126557,0.6336,4008.5,4007.9,3.0]
[1760125126857,0.6336,4008.7,4007.9,4.23]
[1760125127006,0.1029,4009.0,4007.9,4.23]
[1760125127206,0.6336,4008.9,4007.9,4.23]
[1760125127512,0.6336,4008.9,4008.0,3.981]
[1760125128151,0.6336,4008.5,4007.9,5.46]
[1760125128318,0.1029,4008.4,4007.9,5.46]
[1760125128511,0.6336,4008.2,4007.9,5.46]
[1760125128714,0.6336,4008.0,4007.9,5.46]
[1760125128917,30.7365,4008.0,4007.9,5.46]
[1760125129184,5.3325,4008.0,4007.9,5.46]
[1760125129441,2.0229,4008.0,4007.9,5.46]
[1760125129748,35.15150998,4008.0,4007.9,6.69]
[1760125129911,39.13150998,4008.0,4007.9,6.69]
[1760125130115,51.82950998,4008.0,4007.9,6.68600001]
[1760125130355,51.82950998,4008.0,4006.7,1.23]
[1760125130356,33.12935721,4006.8,4006.7,1.23]
[1760125130525,36.48935721,4006.8,4006.7,0.8967]
[1760125130930,46.31035721,4006.8,4006.7,0.8967]
[1760125131238,47.52719977,4006.8,4006.7,0.8967]
[1760125131443,46.31035721,4006.8,4006.7,0.8967]
[1760125131751,32.71255613,4006.8,4006.7,0.8967]
[1760125131952,2.71255613,4006.8,4006.7,0.8967]
[1760125132260,35.20831334,4006.8,4006.7,0.8967]
[1760125132437,36.64831334,4006.8,4006.7,0.8967]
[1760125132746,37.8651559,4006.8,4006.2,3.68982112]
[1760125132953,34.41606869,4006.3,4006.2,3.68982112]
[1760125133158,38.39506869,4006.3,4006.2,3.68982112]
[1760125133530,31.92,4006.3,4006.2,3.68982112]
[1760125133732,39.02866869,4006.3,4006.2,3.68982112]
[1760125134752,35.04966869,4006.3,4006.2,3.68982112]
[1760125135052,39.02866869,4006.3,4006.2,3.68982112]
[1760125135653,0.6336,4006.1,4004.1,2.081]
[1760125135962,24.12,4005.0,4004.2,3.979]
[1760125136164,24.12,4005.0,4004.1,2.081]
[1760125136165,32.5536,4004.8,4003.9,1.2298189]
[1760125136330,2.5536,4004.3,4003.9,1.2298189]
[1760125136530,1.92,4004.1,4003.9,1.2298189]
[1760125136767,0.6336,4004.3,4003.9,1.2298189]
[1760125136768,0.7326,4004.0,4003.9,1.2298189]
[1760125137276,32.6526,4004.0,4003.9,1.2298189]
[1760125137769,39.02910249,4004.0,4003.9,1.2298189]
[1760125138435,50.29810249,4004.0,4003.9,1.2298189]
[1760125138632,2.49815913,4003.0,4001.7,1.23]
[1760125138846,1.92,4003.4,4001.7,1.23]
[1760125138847,30.0,4002.7,4001.7,1.23]
[1760125139048,5.899,4002.6,4001.7,1.23]
[1760125139250,3.979,4002.6,4001.7,1.23]
[1760125139739,0.6336,4002.4,4001.7,1.23]
[1760125139958,10.6336,4002.2,4001.7,1.23]
[1760125140169,0.001,4002.1,4001.7,1.23]
[1760125140336,3.667,4002.2,4001.7,1.23]
[1760125140541,0.001,4003.5,4001.8,0.45408875]
[1760125140794,30.0,4003.9,4001.9,0.16860888]
[1760125141081,0.6336,4003.6,4001.7,1.23]
[1760125141301,2.5536,4003.2,4001.8,3.255]
[1760125141442,2.5536,4003.0,4001.7,5.199]
[1760125141642,0.6336,4003.0,4001.8,2.082]
[1760125141869,1.92,4003.1,4001.8,2.082]
[1760125141870,2.5536,4003.1,4001.8,2.10698875]
[1760125142147,0.6336,4003.1,4001.9,0.85379888]
[1760125142741,1.92,4003.4,4001.9,6.061]
[1760125143045,2.5536,4003.7,4002.0,0.0249875]
[1760125143360,0.6336,4003.7,4002.0,0.0249875]
[1760125143566,2.5536,4003.5,4002.0,0.0249875]
[1760125143749,7.13,4003.4,4002.1,0.2228]
[1760125144087,3.978,4004.2,4002.2,0.63087875]
[1760125144296,3.978,4004.2,4001.8,1.23]
[1760125144297,30.0,4003.9,4002.0,3.076]
[1760125144496,1.92,4003.6,4002.1,2.082]
[1760125144989,12.5536,4003.7,4002.2,6.06]
[1760125145279,31.92,4003.9,4002.2,6.06]
[1760125145479,3.979,4004.0,4002.2,6.06]
[1760125145480,1.92,4003.7,4002.2,6.06]
[1760125145680,1.92,4003.7,4002.3,1.07801]
[1760125145978,3.978,4004.2,4002.3,1.07801]
[1760125146180,0.1304,4004.9,4002.3,1.07801]
[1760125146181,0.1304,4004.9,4002.4,0.4291]
[1760125146478,6.06,4004.7,4002.4,0.4291]
[1760125146685,30.0,4004.5,4002.3,6.06]
[1760125146889,2.5536,4004.1,4002.1,1.23]
[1760125147050,0.6336,4003.7,4002.1,1.23]
[1760125147248,2.5536,4003.4,4002.1,1.23]
[1760125147469,0.6336,4003.4,4002.1,1.23]
[1760125147784,0.6336,4002.7,4002.1,1.23]
[1760125148023,33.13216332,4002.3,4002.2,1.23]
[1760125148230,35.05216332,4002.3,4002.2,1.229]
[1760125148584,19.1456,4002.3,4002.2,1.229]
[1760125148823,2.5536,4002.3,4002.2,1.229]
[1760125149023,4.9796,4002.3,4002.2,1.229]
[1760125149410,1.92,4002.3,4002.2,1.229]
[1760125149612,2.5536,4002.3,4002.2,1.229]
[1760125149816,1.92,4002.3,4002.2,1.229]
[1760125150592,1.92,4002.3,4002.2,2.459]
[1760125150829,9.472,4002.3,4002.2,2.459]
[1760125151003,1.92,4002.3,4002.2,2.459]
[1760125152124,1.92,4002.3,4002.2,3.689]
[1760125152731,2.5536,4002.3,4002.2,3.689]
[1760125153032,12.05716332,4002.3,4002.2,3.689]
[1760125153397,12.05716332,4002.3,4002.2,4.919]
[1760125153923,45.64210961,4002.2,4001.9,1.23]
[1760125154126,45.05253795,4001.7,3998.7,0.002]
[1760125154293,33.13303762,4000.9,3999.1,3.979]
[1760125154498,32.5536,4000.9,3999.1,3.979]
[1760125154693,2.5536,4000.9,3999.5,2.083]
[1760125154895,35.15203762,4000.9,3999.9,0.736]
[1760125155199,35.15203762,4000.9,3999.1,0.002]
[1760125155398,41.21203762,4000.9,3999.1,0.261]
[1760125155836,36.6296,4000.9,3999.1,0.261]
[1760125156040,39.12903762,4000.9,3999.1,0.261]
[1760125156192,36.6296,4000.9,3999.1,0.261]
[1760125156398,39.12903762,4000.9,3999.1,0.261]
[1760125156903,36.6296,4000.9,3999.1,0.261]
[1760125157099,2.6526,4000.9,3999.2,0.025005]
[1760125157324,32.6526,4000.9,3999.1,0.261]
[1760125157525,35.15203762,4000.9,4000.8,1.232]
[1760125158028,14.1326,4000.9,4000.8,1.232]
[1760125158232,16.63203762,4000.9,4000.8,1.232]
[1760125158602,14.1326,4000.9,4000.8,1.232]
[1760125158932,2.019,4000.9,4000.8,1.232]
[1760125159259,30.099,4000.9,4000.8,2.462]
[1760125159443,7.1966,4000.9,4000.8,2.461]
[1760125159611,9.69603762,4000.9,4000.8,2.461]
[1760125160139,14.26292148,4000.9,4000.8,2.461]
[1760125160429,39.71892148,4000.9,4000.8,2.461]
[1760125160639,39.71892148,4000.9,4000.8,3.691]
[1760125160840,50.99692148,4000.9,4000.8,3.691]
[1760125161245,48.49748386,4000.9,3999.1,0.002]
[1760125161410,42.6825,3999.2,3999.1,0.002]
[1760125161608,14.1365,3999.2,3999.1,0.002]
[1760125161812,14.2358,3999.2,3999.1,0.002]
[1760125162036,16.7363001,3999.2,3999.1,0.002]
[1760125162315,35.87218396,3999.2,3999.1,0.002]
[1760125162611,47.15618396,3999.2,3999.1,0.002]
[1760125162923,47.15618396,3999.2,3998.7,1e-08]
[1760125162924,35.05435022,3998.8,3998.7,1e-08]
[1760125163124,52.98923408,3998.8,3998.7,1e-08]
[1760125163324,53.08853408,3998.8,3998.7,1e-08]
[1760125163729,36.6299,3998.8,3998.7,1e-08]
[1760125164053,0.0993,3998.8,3998.7,1e-08]
[1760125164239,15.0,4001.4,3998.7,1e-08]
[1760125164240,0.0993,3999.5,3998.7,1e-08]
[1760125164438,15.0,4001.4,3998.7,1e-08]
[1760125164439,0.0996,3998.8,3998.7,1e-08]
[1760125164955,30.7332,3998.8,3998.7,1e-08]
[1760125165141,2.6532,3998.8,3998.7,1e-08]
[1760125165320,35.15395022,3998.8,3998.7,1e-08]
[1760125165652,25.3502,3998.8,3998.7,1e-08]
[1760125165856,28.1372,3998.8,3998.7,1e-08]
[1760125166154,6.6302,3998.8,3998.3,0.002]
[1760125166355,41.92,3998.4,3997.7,0.002]
[1760125166553,41.92,3998.4,3997.3,0.002]
[1760125166554,2.5536,3997.7,3997.3,0.002]
[1760125166804,0.6336,3997.7,3997.3,0.002]
[1760125167055,0.0999,3998.3,3997.3,0.002]
[1760125167056,0.1001,3998.8,3997.3,0.002]
[1760125167354,0.979,3998.9,3997.4,0.453]
[1760125167556,0.979,3999.0,3998.7,1.23]
[1760125167759,5.049,3999.3,3998.7,1.23]
[1760125167918,0.1286,3999.7,3998.7,1.23]
[1760125168123,2.4231,4000.1,3998.7,1.23]
[1760125168320,5.767,4000.0,3998.7,1.23]
[1760125168631,12.0483,3999.9,3998.7,1.23]
[1760125168846,2.536,3999.8,3998.7,1.23]
[1760125169021,0.1283,3999.9,3998.7,1.23]
[1760125169222,0.1004,4000.8,3998.7,1.23]
[1760125169524,0.1004,4000.8,3998.8,0.1683]
[1760125169724,3.977,4001.2,3998.9,2.56300687]
[1760125169937,3.977,4001.2,3998.9,0.453]
[1760125169938,30.0,4001.0,3998.9,0.453]
[1760125170164,30.0,4000.8,3998.8,0.1683]
[1760125170334,30.0,4000.6,3998.8,0.1683]
[1760125170577,0.1004,4000.9,3998.9,0.16483687]
[1760125170885,0.2242,4001.8,3998.9,0.61783687]
[1760125171058,30.0,4001.6,3998.9,0.13983]
[1760125171261,0.2242,4001.8,3999.2,0.6336]
[1760125171462,30.0,4002.4,3999.5,0.6336]
[1760125171662,0.099,4002.3,3999.6,1.58126]
[1760125171866,30.0,4002.1,3999.7,9.571]
[1760125172062,3.976,4002.0,3999.7,9.571]
[1760125172370,15.601,4001.9,3999.7,9.571]
[1760125172689,4.075,4002.2,3999.8,0.47800125]
[1760125172855,1.92,4002.0,3999.8,0.47800125]
[1760125173051,1.92,4002.0,3999.9,1.00490013]
[1760125173386,3.779,4002.1,4000.0,0.453]
[1760125173950,0.001,4000.9,4000.0,0.453]
[1760125174167,0.001,4000.9,4000.1,6.06]
[1760125174362,0.001,4000.9,3999.4,0.453]
[1760125174686,0.001,4000.9,3999.5,6.06]
[1760125174893,0.001,4000.9,3999.6,1.3028]
[1760125175501,0.001,4000.9,4000.0,0.6336]
[1760125175654,0.001,4000.9,4000.0,2.49994197]
[1760125175988,0.001,4000.9,4000.1,0.453]
[1760125176158,0.001,4000.9,4000.1,6.511]
[1760125176365,0.001,4000.9,4000.2,0.6511]
[1760125176576,0.001,4000.9,4000.3,4.574]
[1760125176954,0.001,4000.9,4000.4,0.0249975]
[1760125177152,0.001,4000.9,4000.3,4.574]
[1760125177458,0.001,4000.9,4000.1,0.453]
[1760125177792,0.001,4001.4,4000.9,0.029]
[1760125178149,0.0993,4001.3,4000.9,0.029]
[1760125178490,0.001,4001.4,4000.0,0.49728515]
[1760125178491,2.4999375,4000.1,4000.0,0.49728515]
[1760125178702,2.4999375,4000.1,3998.9,1.23]
[1760125178703,0.6336,3999.7,3998.9,1.23]
[1760125178991,35.18182515,3999.0,3998.9,1.23]
[1760125179365,5.28082515,3999.0,3998.9,1.23]
[1760125179685,46.56382515,3999.0,3998.9,1.23]
[1760125179898,46.56382515,3999.0,3997.9,0.002]
[1760125179899,5.05428768,3998.9,3997.9,0.002]
[1760125180102,3.13485062,3998.0,3997.9,0.002]
[1760125180402,5.05485062,3998.0,3997.9,0.002]
[1760125180562,32.019,3998.0,3997.9,0.002]
[1760125180761,35.15385062,3998.0,3997.9,0.002]
[1760125181203,35.74206782,3998.0,3997.9,0.002]
[1760125181658,41.79906782,3998.0,3997.9,0.002]
[1760125182115,41.79906782,3998.0,3997.3,1.232]
[1760125182116,3.13522605,3997.4,3997.3,0.23421367]
[1760125182263,39.02822605,3997.4,3997.3,0.23421367]
[1760125182463,39.12752605,3997.4,3997.3,0.23421367]
[1760125182769,39.12752605,3997.4,3997.3,1e-08]
[1760125182969,43.9409,3997.4,3997.3,1e-08]
[1760125183291,41.21252605,3997.4,3997.3,1e-08]
[1760125183791,52.50052605,3997.4,3997.3,1e-08]
[1760125184206,52.88253756,3997.4,3997.3,1e-08]
[1760125184363,44.32291151,3997.4,3997.3,1e-08]
[1760125184562,36.6259,3997.4,3997.3,1e-08]
[1760125184763,39.12752605,3997.4,3997.3,1e-08]
[1760125184964,0.1266,3997.5,3997.3,1e-08]
[1760125185202,30.0,3997.8,3997.3,1e-08]
[1760125185411,0.0995,3997.4,3997.3,1e-08]
[1760125185839,30.0995,3997.4,3997.3,1.23000001]
[1760125186037,6.7131,3997.4,3997.3,1.23000001]
[1760125186337,0.1263,3997.9,3997.3,1.23000001]
[1760125186635,30.0,3997.8,3997.3,1.23000001]
[1760125186845,10.0995,3997.7,3997.3,1.23000001]
[1760125187007,0.6336,3997.6,3997.3,1.23000001]
[1760125187335,0.1263,3997.9,3997.3,1.23000001]
[1760125187336,0.0995,3997.5,3997.3,2.46000001]
[1760125187538,0.0995,3998.1,3997.3,2.46000001]
[1760125187834,1.92,3997.9,3997.3,2.46000001]
[1760125188036,30.7597,3997.4,3997.3,2.46000001]
[1760125188239,32.7795,3997.4,3997.3,2.46000001]
[1760125188542,6.5525,3997.4,3997.3,3.69000001]
[1760125188919,32.7795,3997.4,3997.3,3.69000001]
[1760125189356,36.7525,3997.4,3997.3,3.69000001]
[1760125189759,41.34012605,3997.4,3997.3,3.69000001]
[1760125190366,41.34012605,3997.4,3997.3,4.92000001]
[1760125191134,41.72213756,3997.4,3997.3,4.92000001]
[1760125191336,20.0405,3997.4,3997.3,4.92000001]
[1760125191572,18.9125,3997.4,3997.3,4.92000001]
[1760125191776,20.6677,3997.4,3997.3,6.15000001]
[1760125191948,32.7795,3997.4,3997.3,6.15200001]
[1760125192283,2.086,3998.1,3997.3,6.15200001]
[1760125192284,3.973,3997.7,3997.3,6.15200001]
[1760125192463,4.0999,3997.8,3997.3,6.15200001]
[1760125192630,0.099,3997.7,3997.3,6.15200001]
[1760125192831,31.92,3997.4,3997.3,6.15200001]
[1760125193095,39.12722605,3997.4,3997.3,6.15200001]
[1760125193275,39.12722605,3997.4,3997.3,7.38200001]
[1760125193461,41.21322605,3997.4,3997.3,7.38200001]
[1760125193772,41.59523756,3997.4,3997.3,7.38200001]
[1760125194178,41.21322605,3997.4,3997.3,7.38200001]
[1760125194875,41.21322605,3997.4,3997.3,8.61200001]
[1760125195073,5.15422605,3997.4,3997.3,8.61200001]
[1760125195232,32.019,3997.4,3997.3,8.61200001]
[1760125195432,35.991,3997.4,3997.3,8.61200001]
[1760125196072,0.099,3997.4,3997.3,9.84200001]
[1760125196253,0.099,3998.1,3997.3,9.84200001]
[1760125196468,30.0,3997.9,3997.3,9.84200001]
[1760125196667,0.2246,3997.8,3997.3,9.84200001]
[1760125196912,0.099,3998.3,3997.3,11.22340001]
[1760125197053,30.0,3998.1,3997.3,11.22340001]
[1760125197260,30.0,3998.1,3997.3,9.84200001]
[1760125197444,1.92,3998.0,3997.3,11.07200001]
[1760125197677,0.1266,4000.2,3997.3,11.07200001]
[1760125198004,1.92,3998.5,3997.3,15.04400001]
[1760125198146,2.2126,4000.2,3997.3,15.04400001]
[1760125198349,30.0,3999.8,3997.4,2.18721626]
[1760125198653,30.0,3999.6,3997.5,0.4492]
[1760125198864,2.086,3999.6,3997.6,0.025015]
[1760125199068,4.006,3999.6,3997.6,0.025015]
[1760125199266,2.086,3999.6,3997.7,0.4492]
[1760125199456,2.086,3999.6,3997.8,3.972]
[1760125199653,3.972,4000.0,3997.9,3.00233313]
[1760125199853,3.972,4000.0,3998.0,0.4492]
[1760125200083,3.972,4000.0,3998.1,0.2239]
[1760125200278,31.92,3999.9,3998.1,0.2239]
[1760125200483,3.972,4000.0,3998.1,0.2239]
[1760125200484,3.972,4000.0,3998.2,6.08201125]
[1760125200698,2.1858,4001.2,3998.4,0.6336]
[1760125200895,0.0998,4001.2,3998.8,2.50074685]
[1760125201199,0.001,4001.4,3998.9,13.01567728]
[1760125201497,0.001,4001.4,3999.1,2.5536]
[1760125201798,0.001,4001.4,4000.8,0.2239]
[1760125201961,0.001,4001.4,4000.8,6.2809]
[1760125202302,0.001,4001.4,4000.9,1.32724702]
[1760125202498,0.001,4001.4,4001.0,6.057]
[1760125202794,0.001,4001.4,4000.1,6.519]
[1760125202795,0.001,4001.4,4000.1,0.4492]
[1760125202960,0.001,4001.4,4000.2,6.056]
[1760125203158,0.001,4001.4,4000.1,0.4492]
[1760125203394,0.001,4001.4,4000.2,6.07999875]
[1760125203606,0.001,4001.4,4000.3,0.67530988]
[1760125203896,0.001,4001.4,4000.4,0.0249975]
[1760125204428,0.001,4001.4,4000.5,0.6336]
[1760125204592,0.001,4001.4,4000.4,0.4492]
[1760125204797,0.001,4001.4,4000.5,1.543]
[1760125205022,30.0,4001.3,3999.7,0.4492]
[1760125205300,1.92,4001.0,3999.0,0.4492]
[1760125205502,12.5536,4000.7,4000.1,1.23]
[1760125205660,2.5536,4000.2,4000.1,1.229]
[1760125205862,32.5536,4000.2,4000.1,1.229]
[1760125206177,10.0,4000.9,4000.1,1.229]
[1760125206513,30.6336,4001.3,4000.1,1.229]
[1760125206708,2.5536,4001.1,4000.1,1.229]
[1760125206996,0.6336,4000.8,4000.4,1.23]
[1760125207161,0.6336,4001.1,4000.4,1.23]
[1760125207361,0.6336,4001.2,4000.4,1.23]
[1760125207563,30.1003,4001.1,4000.4,1.23]
[1760125207886,40.6336,4000.5,4000.4,1.23]
[1760125208074,1.92,4000.5,4000.4,1.23]
[1760125208482,32.0203,4000.5,4000.4,1.23]
[1760125208705,12.8503,4000.5,4000.4,1.23]
[1760125208915,5.3689,4000.5,4000.4,1.23]
[1760125209071,35.15358753,4000.5,4000.4,1.23]
[1760125209278,35.053475,4000.2,4000.1,2.459]
[1760125209502,35.053475,4000.2,4000.1,2.3577]
[1760125209809,32.5536,4000.2,4000.1,2.3577]
[1760125210007,36.5206,4000.2,4000.1,3.5877]
[1760125210218,31.92,4000.2,4000.1,3.5877]
[1760125210510,30.0,4000.4,4000.1,3.5877]
[1760125210729,0.001,4000.5,4000.2,0.02499875]
[1760125210934,10.833,4000.4,4000.1,3.5877]
[1760125211079,0.001,4000.5,4000.1,3.5877]
[1760125211280,0.001,4000.5,4000.4,1.23]
[1760125212589,35.05428753,4000.5,4000.4,1.23]
[1760125212788,3.133475,4000.2,4000.1,2.31174067]
[1760125213003,0.6336,3999.4,3999.1,1.22941573]
[1760125213217,0.6336,3999.2,3999.1,1.22941573]
[1760125213499,32.6787,3999.2,3999.1,1.22941573]
[1760125214179,2.6787,3999.2,3999.1,1.22941573]
[1760125214410,2.5536,3999.2,3999.1,1.22941573]
[1760125214580,39.1452001,3999.2,3999.1,1.22941573]
[1760125214779,36.6447,3999.2,3999.1,1.22941573]
[1760125215006,16.3837,3999.2,3999.1,1.22941573]
[1760125215194,9.4437,3999.2,3999.1,1.22941573]
[1760125215515,1.92,3999.2,3999.1,1.22941573]
[1760125216435,0.1251,3999.9,3999.1,1.22941573]
[1760125216734,2.5536,3999.6,3999.1,1.22941573]
[1760125217034,0.1251,3999.5,3999.1,1.22941573]
[1760125217339,0.1251,3999.4,3999.1,1.22941573]
[1760125217547,0.1251,3999.3,3999.1,2.45941573]
[1760125217840,5.886,4000.3,3999.1,2.7053573]
[1760125218045,30.0,4000.4,3999.1,2.45941573]
[1760125218046,32.50006693,3999.9,3999.1,2.45941573]
[1760125218210,2.5536,3999.6,3999.1,2.45941573]
[1760125218408,10.0,3999.4,3999.1,2.45941573]
[1760125218614,0.001,4000.5,3999.1,2.45941573]
[1760125218811,0.001,4000.5,3999.2,0.4367]
[1760125219032,0.001,4000.5,3999.3,6.46261157]
[1760125219336,0.001,4000.5,3999.4,0.02500375]
[1760125219496,0.001,4000.5,3999.3,0.41261157]
[1760125219836,0.001,4000.5,3999.4,6.05]
[1760125220137,1.92,4000.2,3999.5,2.085]
[1760125220301,0.001,4000.5,3999.6,0.0250025]
[1760125220642,0.001,4000.5,3999.5,0.605]
[1760125220805,0.6346,4000.5,3999.6,4.431]
[1760125221000,2.5536,4000.3,3999.1,4.91941573]
[1760125221200,0.6336,4000.2,3999.2,6.05]
[1760125221518,0.6336,4000.2,3999.1,4.91941573]
[1760125221519,2.5536,4000.0,3999.1,4.91941573]
[1760125221714,0.1251,4000.2,3999.1,6.14941573]
[1760125221938,0.001,4000.5,3999.1,7.3693573]
[1760125222140,0.001,4000.5,3999.2,0.461705]
[1760125222311,0.001,4000.5,3999.3,0.6336]
[1760125222631,0.001,4000.5,3999.4,6.05]
[1760125222837,0.001,4000.5,3999.4,6.4867]
[1760125223010,0.001,4000.5,3999.6,2.50025002]
[1760125223233,0.001,4000.5,3999.7,0.02500187]
[1760125223438,0.001,4000.5,3999.8,6.049]
[1760125223824,0.001,4000.5,3999.9,6.049]
[1760125224025,0.001,4000.5,3999.9,6.4857]
[1760125224221,0.001,4001.4,4000.4,2.49973493]
[1760125224526,0.001,4001.4,4000.1,0.6336]
[1760125224527,0.001,4001.4,4000.5,0.02499687]
[1760125224724,0.001,4001.4,4000.9,0.6336]
[1760125224967,0.101,4003.8,4001.0,2.085]
[1760125225263,2.086,4004.0,4001.1,0.65859312]
[1760125225469,2.086,4004.0,4001.3,0.6336]
[1760125225630,0.001,4004.0,4001.7,3.13253795]
[1760125225830,0.001,4004.0,4001.7,9.17953795]
[1760125226039,0.001,4004.0,4001.7,9.61623795]
[1760125226364,0.001,4004.0,4001.7,0.4367]